[Event "Titled Tuesday Blitz April 11 Early 2023"]
[White "Jaivardhan Raj"]
[Black "sebastianmarinp"]
[WhiteFideId "25744437"]
[WhiteElo "1772"]
[BlackElo "2282"]
[Result "1-0"]
[Round "09"]
[TimeControl "180+2"]
[Date "2023.04.11"]
[WhiteClock "0:00:27"]
[BlackClock "0:00:02"]

1. e4 {[%clk 0:03:00]}  e5 {[%clk 0:02:59]} 2. d4 {[%clk 0:03:00]}  exd4 {[%clk 0:02:59]} 3. Qxd4 {[%clk 0:03:01]}  Nc6 {[%clk 0:02:58]} 4. Qe3 {[%clk 0:03:01]}  Nf6 {[%clk 0:02:54]} 5. Nc3 {[%clk 0:03:02]}  Bb4 {[%clk 0:02:45]} 6. Bd2 {[%clk 0:03:02]}  O-O {[%clk 0:02:44]} 7. O-O-O {[%clk 0:03:02]}  Re8 {[%clk 0:02:43]} 8. f3 {[%clk 0:03:03]}  d5 {[%clk 0:02:38]} 9. Qf2 {[%clk 0:03:03]}  dxe4 {[%clk 0:02:25]} 10. Bg5 {[%clk 0:03:01]}  Qe7 {[%clk 0:02:04]} 11. Nd5 {[%clk 0:02:58]}  Qe5 {[%clk 0:01:57]} 12. Bxf6 {[%clk 0:02:45]}  gxf6 {[%clk 0:01:52]} 13. fxe4 {[%clk 0:02:41]}  Re6 {[%clk 0:01:21]} 14. Qg3+ {[%clk 0:02:19]}  Qxg3 {[%clk 0:01:16]} 15. hxg3 {[%clk 0:02:19]}  Bd6 {[%clk 0:01:15]} 16. Rh4 {[%clk 0:02:10]}  Ne7 {[%clk 0:01:07]} 17. Bc4 {[%clk 0:01:58]}  Nxd5 {[%clk 0:01:05]} 18. Bxd5 {[%clk 0:01:55]}  Re8 {[%clk 0:01:05]} 19. Ne2 {[%clk 0:01:52]}  f5 {[%clk 0:00:57]} 20. Rdh1 {[%clk 0:01:47]}  fxe4 {[%clk 0:00:44]} 21. Rxh7 {[%clk 0:01:43]}  Re5 {[%clk 0:00:31]} 22. Bxf7+ {[%clk 0:01:35]}  Kf8 {[%clk 0:00:31]} 23. Bb3 {[%clk 0:01:34]}  Rg5 {[%clk 0:00:29]} 24. Rh8+ {[%clk 0:01:30]}  Ke7 {[%clk 0:00:28]} 25. R1h7+ {[%clk 0:01:27]}  Kf6 {[%clk 0:00:27]} 26. Rf7+ {[%clk 0:01:25]}  Kg6 {[%clk 0:00:23]} 27. Rg8+ {[%clk 0:01:19]}  Kh5 {[%clk 0:00:22]} 28. Rh7+ {[%clk 0:01:17]}  Kg4 {[%clk 0:00:21]} 29. Rh4+ {[%clk 0:01:14]}  Kf5 {[%clk 0:00:20]} 30. Nd4+ {[%clk 0:01:11]}  Ke5 {[%clk 0:00:18]} 31. Rxg5+ {[%clk 0:01:10]}  Kxd4 {[%clk 0:00:18]} 32. Rd5+ {[%clk 0:01:07]}  Ke3 {[%clk 0:00:17]} 33. Rg5 {[%clk 0:01:04]}  Bd7 {[%clk 0:00:17]} 34. Bd5 {[%clk 0:01:03]}  Re8 {[%clk 0:00:14]} 35. Bxb7 {[%clk 0:00:44]}  c6 {[%clk 0:00:14]} 36. Rh7 {[%clk 0:00:39]}  Be6 {[%clk 0:00:07]} 37. Bxc6 {[%clk 0:00:36]}  Rc8 {[%clk 0:00:07]} 38. Bd7 {[%clk 0:00:32]}  Bxd7 {[%clk 0:00:06]} 39. Rxd7 {[%clk 0:00:31]}  Rc6 {[%clk 0:00:07]} 40. Rg6 {[%clk 0:00:29]}  Ke2 {[%clk 0:00:02]} 41. Rgxd6 {[%clk 0:00:27]} 1-0


[Site "https://www.chess.com"]

[Event "Titled Tuesday Blitz April 11 Early 2023"]
[White "Lohani, Sujana"]
[Black "Zaichenko, Daria"]
[WhiteFideId "12311987"]
[BlackFideId "4197453"]
[WhiteElo "1718"]
[BlackElo "2039"]
[Result "0-1"]
[Round "09"]
[TimeControl "180+2"]
[Date "2023.04.11"]
[WhiteClock "0:00:02"]
[BlackClock "0:00:57"]

1. d4 {[%clk 0:03:00]}  d5 {[%clk 0:02:57]} 2. Nf3 {[%clk 0:03:01]}  Nf6 {[%clk 0:02:55]} 3. c4 {[%clk 0:02:43]}  e6 {[%clk 0:02:55]} 4. g3 {[%clk 0:02:42]}  Be7 {[%clk 0:02:55]} 5. Bg2 {[%clk 0:02:43]}  O-O {[%clk 0:02:56]} 6. O-O {[%clk 0:02:43]}  dxc4 {[%clk 0:02:56]} 7. Ne5 {[%clk 0:02:33]}  Nc6 {[%clk 0:02:54]} 8. Nxc6 {[%clk 0:02:13]}  bxc6 {[%clk 0:02:54]} 9. Bxc6 {[%clk 0:02:14]}  Rb8 {[%clk 0:02:54]} 10. e3 {[%clk 0:01:55]}  Nd5 {[%clk 0:02:47]} 11. Qc2 {[%clk 0:01:52]}  Ba6 {[%clk 0:02:46]} 12. Nc3 {[%clk 0:01:48]}  Nb4 {[%clk 0:02:42]} 13. Qa4 {[%clk 0:01:47]}  Qd6 {[%clk 0:02:23]} 14. Bg2 {[%clk 0:01:40]}  Nd3 {[%clk 0:02:19]} 15. Ne4 {[%clk 0:01:37]}  Qb6 {[%clk 0:02:14]} 16. Rb1 {[%clk 0:01:35]}  Bb5 {[%clk 0:02:09]} 17. Qc2 {[%clk 0:01:31]}  Nb4 {[%clk 0:02:05]} 18. Qd1 {[%clk 0:01:13]}  Nxa2 {[%clk 0:02:04]} 19. Nc3 {[%clk 0:01:03]}  Nxc3 {[%clk 0:01:58]} 20. bxc3 {[%clk 0:01:03]}  Rfd8 {[%clk 0:01:41]} 21. Qc2 {[%clk 0:01:01]}  a5 {[%clk 0:01:38]} 22. Bd2 {[%clk 0:00:37]}  a4 {[%clk 0:01:37]} 23. e4 {[%clk 0:00:35]}  a3 {[%clk 0:01:34]} 24. Ra1 {[%clk 0:00:32]}  Qa6 {[%clk 0:01:30]} 25. Rfb1 {[%clk 0:00:30]}  Ba4 {[%clk 0:01:26]} 26. Qc1 {[%clk 0:00:25]}  Bb3 {[%clk 0:01:18]} 27. Bf1 {[%clk 0:00:22]}  a2 {[%clk 0:01:09]} 28. Rb2 {[%clk 0:00:12]}  Ba3 {[%clk 0:01:09]} 29. Raxa2 {[%clk 0:00:07]}  Bxa2 {[%clk 0:01:01]} 30. Rxb8 {[%clk 0:00:02]}  Rxb8 {[%clk 0:01:00]} 31. Qa1 {[%clk 0:00:02]}  Bb2 {[%clk 0:00:57]} 0-1


[Site "https://www.chess.com"]

[Event "Titled Tuesday Blitz April 11 Early 2023"]
[White "Vifleemskaia, Svetlana"]
[Black "Sankalan Shah"]
[WhiteFideId "4129490"]
[BlackFideId "25600362"]
[WhiteElo "1930"]
[BlackElo "2118"]
[Result "0-1"]
[Round "09"]
[TimeControl "180+2"]
[Date "2023.04.11"]
[WhiteClock "0:00:03"]
[BlackClock "0:00:08"]

1. d4 {[%clk 0:03:00]}  Nf6 {[%clk 0:02:56]} 2. c4 {[%clk 0:03:00]}  e6 {[%clk 0:02:55]} 3. Nc3 {[%clk 0:03:00]}  Bb4 {[%clk 0:02:54]} 4. e3 {[%clk 0:03:01]}  b6 {[%clk 0:02:53]} 5. Ne2 {[%clk 0:02:59]}  c5 {[%clk 0:02:53]} 6. a3 {[%clk 0:02:58]}  Ba5 {[%clk 0:02:53]} 7. Rb1 {[%clk 0:02:57]}  Na6 {[%clk 0:02:53]} 8. g3 {[%clk 0:02:56]}  Bb7 {[%clk 0:02:52]} 9. d5 {[%clk 0:02:56]}  exd5 {[%clk 0:02:53]} 10. Bg2 {[%clk 0:02:56]}  O-O {[%clk 0:02:49]} 11. O-O {[%clk 0:02:54]}  Bxc3 {[%clk 0:01:44]} 12. Nxc3 {[%clk 0:02:52]}  Nc7 {[%clk 0:01:43]} 13. cxd5 {[%clk 0:02:47]}  d6 {[%clk 0:01:44]} 14. a4 {[%clk 0:02:44]}  a6 {[%clk 0:01:43]} 15. b4 {[%clk 0:02:38]}  Rb8 {[%clk 0:01:25]} 16. bxc5 {[%clk 0:02:35]}  bxc5 {[%clk 0:01:26]} 17. e4 {[%clk 0:02:29]}  Re8 {[%clk 0:01:24]} 18. Bf4 {[%clk 0:02:17]}  Qd7 {[%clk 0:01:05]} 19. Rb6 {[%clk 0:02:09]}  Na8 {[%clk 0:00:26]} 20. Rxd6 {[%clk 0:02:07]}  Qe7 {[%clk 0:00:26]} 21. a5 {[%clk 0:01:50]}  g6 {[%clk 0:00:25]} 22. e5 {[%clk 0:01:36]}  Nh5 {[%clk 0:00:24]} 23. Qg4 {[%clk 0:01:34]}  Bc8 {[%clk 0:00:22]} 24. Qf3 {[%clk 0:01:16]}  Rb3 {[%clk 0:00:20]} 25. Rc1 {[%clk 0:01:08]}  Nc7 {[%clk 0:00:14]} 26. Qe4 {[%clk 0:01:05]}  Bf5 {[%clk 0:00:12]} 27. Qc4 {[%clk 0:01:04]}  Reb8 {[%clk 0:00:11]} 28. Rb6 {[%clk 0:01:03]}  R3xb6 {[%clk 0:00:10]} 29. axb6 {[%clk 0:01:03]}  Nb5 {[%clk 0:00:09]} 30. Nxb5 {[%clk 0:00:59]}  axb5 {[%clk 0:00:10]} 31. Qxb5 {[%clk 0:00:58]}  Nxf4 {[%clk 0:00:10]} 32. gxf4 {[%clk 0:00:57]}  Qh4 {[%clk 0:00:10]} 33. Qc4 {[%clk 0:00:42]}  Qg4 {[%clk 0:00:09]} 34. Kh1 {[%clk 0:00:12]}  Rxb6 {[%clk 0:00:09]} 35. h3 {[%clk 0:00:11]}  Qh4 {[%clk 0:00:09]} 36. Qxc5 {[%clk 0:00:07]}  Rb2 {[%clk 0:00:09]} 37. Kg1 {[%clk 0:00:05]}  Qxf4 {[%clk 0:00:08]} 38. Qc4 {[%clk 0:00:03]}  Qxe5 {[%clk 0:00:08]} 0-1


[Site "https://www.chess.com"]

[Event "Titled Tuesday Blitz April 11 Early 2023"]
[White "Winkels, Marcel"]
[Black "Burdalev, Kirill"]
[WhiteFideId "1003887"]
[BlackFideId "14121913"]
[WhiteElo "1900"]
[BlackElo "2236"]
[Result "0-1"]
[Round "09"]
[TimeControl "180+2"]
[Date "2023.04.11"]
[WhiteClock "0:00:16"]
[BlackClock "0:00:07"]

1. d4 {[%clk 0:03:00]}  Nf6 {[%clk 0:02:58]} 2. Nc3 {[%clk 0:03:01]}  d5 {[%clk 0:02:53]} 3. Bf4 {[%clk 0:03:02]}  a6 {[%clk 0:02:51]} 4. e3 {[%clk 0:03:00]}  c5 {[%clk 0:02:34]} 5. Nf3 {[%clk 0:02:55]}  cxd4 {[%clk 0:02:32]} 6. exd4 {[%clk 0:02:55]}  Bg4 {[%clk 0:02:30]} 7. Be2 {[%clk 0:02:54]}  Nc6 {[%clk 0:02:28]} 8. O-O {[%clk 0:02:49]}  e6 {[%clk 0:02:26]} 9. Ne5 {[%clk 0:02:45]}  Bxe2 {[%clk 0:02:24]} 10. Nxe2 {[%clk 0:02:45]}  Rc8 {[%clk 0:02:19]} 11. c3 {[%clk 0:02:43]}  Bd6 {[%clk 0:02:13]} 12. Nxc6 {[%clk 0:02:31]}  Rxc6 {[%clk 0:02:09]} 13. Bxd6 {[%clk 0:02:32]}  Qxd6 {[%clk 0:02:08]} 14. Ng3 {[%clk 0:02:32]}  O-O {[%clk 0:02:06]} 15. f4 {[%clk 0:02:31]}  g6 {[%clk 0:02:04]} 16. Qe2 {[%clk 0:02:24]}  b5 {[%clk 0:02:02]} 17. a3 {[%clk 0:02:24]}  Rfc8 {[%clk 0:01:55]} 18. Qe5 {[%clk 0:02:17]}  Nd7 {[%clk 0:01:49]} 19. Qe3 {[%clk 0:02:04]}  Nb6 {[%clk 0:01:41]} 20. f5 {[%clk 0:02:01]}  exf5 {[%clk 0:01:39]} 21. Qg5 {[%clk 0:01:50]}  f6 {[%clk 0:01:17]} 22. Qh6 {[%clk 0:01:43]}  Qf8 {[%clk 0:01:13]} 23. Qf4 {[%clk 0:01:42]}  Re8 {[%clk 0:01:08]} 24. Rae1 {[%clk 0:01:40]}  Rce6 {[%clk 0:01:05]} 25. Rxe6 {[%clk 0:01:32]}  Rxe6 {[%clk 0:01:06]} 26. Qc7 {[%clk 0:01:31]}  Qe7 {[%clk 0:00:51]} 27. Qb8+ {[%clk 0:01:17]}  Kg7 {[%clk 0:00:49]} 28. h3 {[%clk 0:01:15]}  Qd6 {[%clk 0:00:36]} 29. Qxd6 {[%clk 0:01:10]}  Rxd6 {[%clk 0:00:36]} 30. Re1 {[%clk 0:01:10]}  Kf7 {[%clk 0:00:33]} 31. Nf1 {[%clk 0:01:06]}  Re6 {[%clk 0:00:34]} 32. Ne3 {[%clk 0:01:00]}  Nc4 {[%clk 0:00:31]} 33. Kf2 {[%clk 0:01:00]}  Nxe3 {[%clk 0:00:15]} 34. Rxe3 {[%clk 0:00:59]}  Rxe3 {[%clk 0:00:10]} 35. Kxe3 {[%clk 0:00:59]}  g5 {[%clk 0:00:09]} 36. g3 {[%clk 0:00:56]}  h5 {[%clk 0:00:09]} 37. b3 {[%clk 0:00:44]}  Ke6 {[%clk 0:00:08]} 38. Kf3 {[%clk 0:00:43]}  a5 {[%clk 0:00:08]} 39. Ke3 {[%clk 0:00:43]}  a4 {[%clk 0:00:07]} 40. b4 {[%clk 0:00:35]}  Kd6 {[%clk 0:00:05]} 41. Kf3 {[%clk 0:00:34]}  g4+ {[%clk 0:00:05]} 42. hxg4 {[%clk 0:00:33]}  fxg4+ {[%clk 0:00:05]} 43. Kf4 {[%clk 0:00:33]}  Ke6 {[%clk 0:00:05]} 44. Ke3 {[%clk 0:00:32]}  Kf5 {[%clk 0:00:05]} 45. Kd3 {[%clk 0:00:30]}  Kg5 {[%clk 0:00:05]} 46. Ke3 {[%clk 0:00:30]}  f5 {[%clk 0:00:04]} 47. Kf2 {[%clk 0:00:21]}  f4 {[%clk 0:00:04]} 48. Kg2 {[%clk 0:00:21]}  fxg3 {[%clk 0:00:03]} 49. Kxg3 {[%clk 0:00:21]}  h4+ {[%clk 0:00:04]} 50. Kg2 {[%clk 0:00:21]}  Kf4 {[%clk 0:00:05]} 51. Kf2 {[%clk 0:00:21]}  g3+ {[%clk 0:00:05]} 52. Kg2 {[%clk 0:00:21]}  Kg4 {[%clk 0:00:05]} 53. Kg1 {[%clk 0:00:20]}  h3 {[%clk 0:00:05]} 54. Kf1 {[%clk 0:00:20]}  Kf4 {[%clk 0:00:05]} 55. Kg1 {[%clk 0:00:19]}  Ke4 {[%clk 0:00:06]} 56. Kf1 {[%clk 0:00:18]}  Kd3 {[%clk 0:00:06]} 57. c4 {[%clk 0:00:17]}  Kxc4 {[%clk 0:00:07]} 58. Ke2 {[%clk 0:00:16]}  Kxd4 {[%clk 0:00:07]} 59. Kf3 {[%clk 0:00:17]}  h2 {[%clk 0:00:07]} 60. Kg2 {[%clk 0:00:16]}  Kc3 {[%clk 0:00:07]} 0-1


[Site "https://www.chess.com"]

[Event "Titled Tuesday Blitz April 11 Early 2023"]
[White "Goswami, Vedant"]
[Black "Do Nascimento,Christian Almeida"]
[WhiteFideId "5003725"]
[BlackFideId "2143801"]
[WhiteElo "2011"]
[BlackElo "2125"]
[Result "0-1"]
[Round "09"]
[TimeControl "180+2"]
[Date "2023.04.11"]
[WhiteClock "0:00:13"]
[BlackClock "0:00:53"]

1. b3 {[%clk 0:03:00]}  e5 {[%clk 0:02:55]} 2. Bb2 {[%clk 0:03:00]}  Nc6 {[%clk 0:02:54]} 3. Nf3 {[%clk 0:02:58]}  d6 {[%clk 0:02:53]} 4. d4 {[%clk 0:02:57]}  exd4 {[%clk 0:02:52]} 5. Nxd4 {[%clk 0:02:56]}  Nf6 {[%clk 0:02:52]} 6. Nc3 {[%clk 0:02:51]}  Be7 {[%clk 0:02:52]} 7. g3 {[%clk 0:02:48]}  O-O {[%clk 0:02:51]} 8. Bg2 {[%clk 0:02:49]}  Bd7 {[%clk 0:02:49]} 9. O-O {[%clk 0:02:48]}  Nxd4 {[%clk 0:02:49]} 10. Qxd4 {[%clk 0:02:47]}  Bc6 {[%clk 0:02:49]} 11. e4 {[%clk 0:02:46]}  Re8 {[%clk 0:02:43]} 12. Rfe1 {[%clk 0:02:45]}  Nd7 {[%clk 0:02:41]} 13. Rad1 {[%clk 0:02:35]}  Bf6 {[%clk 0:02:41]} 14. Qd2 {[%clk 0:02:33]}  Nb6 {[%clk 0:02:22]} 15. Bc1 {[%clk 0:02:21]}  a5 {[%clk 0:02:15]} 16. a4 {[%clk 0:02:18]}  Qe7 {[%clk 0:02:09]} 17. Ba3 {[%clk 0:01:30]}  Qe5 {[%clk 0:02:03]} 18. Nd5 {[%clk 0:01:20]}  Bxd5 {[%clk 0:01:59]} 19. exd5 {[%clk 0:01:19]}  Qc3 {[%clk 0:01:57]} 20. Bc1 {[%clk 0:01:13]}  Rxe1+ {[%clk 0:01:43]} 21. Rxe1 {[%clk 0:01:10]}  Kf8 {[%clk 0:01:38]} 22. Qxc3 {[%clk 0:01:06]}  Bxc3 {[%clk 0:01:39]} 23. Re3 {[%clk 0:01:05]}  Bf6 {[%clk 0:01:35]} 24. Bd2 {[%clk 0:01:04]}  Bg5 {[%clk 0:01:32]} 25. f4 {[%clk 0:01:03]}  Bf6 {[%clk 0:01:33]} 26. Kf1 {[%clk 0:01:01]}  Nd7 {[%clk 0:01:32]} 27. Bf3 {[%clk 0:00:53]}  Nc5 {[%clk 0:01:28]} 28. Ke2 {[%clk 0:00:52]}  Bd4 {[%clk 0:01:26]} 29. Bg4 {[%clk 0:00:45]}  Bxe3 {[%clk 0:01:25]} 30. Bxe3 {[%clk 0:00:45]}  b5 {[%clk 0:01:21]} 31. Bxc5 {[%clk 0:00:41]}  dxc5 {[%clk 0:01:20]} 32. Bd7 {[%clk 0:00:41]}  bxa4 {[%clk 0:01:17]} 33. Bxa4 {[%clk 0:00:41]}  Ke7 {[%clk 0:01:16]} 34. Kd3 {[%clk 0:00:40]}  Kd6 {[%clk 0:01:16]} 35. c4 {[%clk 0:00:40]}  h5 {[%clk 0:01:13]} 36. Kd2 {[%clk 0:00:37]}  g6 {[%clk 0:01:13]} 37. Kd3 {[%clk 0:00:36]}  f6 {[%clk 0:01:13]} 38. Bb5 {[%clk 0:00:35]}  g5 {[%clk 0:01:12]} 39. fxg5 {[%clk 0:00:34]}  fxg5 {[%clk 0:01:12]} 40. Ke4 {[%clk 0:00:34]}  Rf8 {[%clk 0:01:13]} 41. Ke3 {[%clk 0:00:28]}  g4 {[%clk 0:01:13]} 42. Ke2 {[%clk 0:00:27]}  Rf3 {[%clk 0:01:12]} 43. Ba4 {[%clk 0:00:25]}  Ke7 {[%clk 0:01:10]} 44. Ke1 {[%clk 0:00:24]}  h4 {[%clk 0:00:59]} 45. gxh4 {[%clk 0:00:23]}  Rh3 {[%clk 0:00:59]} 46. Kf2 {[%clk 0:00:17]}  Kd6 {[%clk 0:00:55]} 47. Kg2 {[%clk 0:00:17]}  Ke5 {[%clk 0:00:55]} 48. h5 {[%clk 0:00:13]}  Kf4 {[%clk 0:00:53]} 0-1


[Site "https://www.chess.com"]

[Event "Titled Tuesday Blitz April 11 Early 2023"]
[White "Quirke, Jeffrey"]
[Black "Grave, Jacob Templen"]
[WhiteFideId "2013029"]
[BlackFideId "1542656"]
[WhiteElo "2235"]
[BlackElo "2189"]
[Result "0-1"]
[Round "09"]
[TimeControl "180+2"]
[Date "2023.04.11"]
[WhiteClock "0:00:02"]
[BlackClock "0:00:03"]

1. e4 {[%clk 0:03:00]}  e5 {[%clk 0:02:51]} 2. Nf3 {[%clk 0:03:00]}  Nc6 {[%clk 0:02:50]} 3. Bb5 {[%clk 0:03:00]}  a6 {[%clk 0:02:50]} 4. Ba4 {[%clk 0:02:58]}  Nf6 {[%clk 0:02:50]} 5. Qe2 {[%clk 0:02:57]}  b5 {[%clk 0:02:45]} 6. Bb3 {[%clk 0:02:56]}  Bc5 {[%clk 0:02:42]} 7. h3 {[%clk 0:02:50]}  d6 {[%clk 0:02:37]} 8. d3 {[%clk 0:02:49]}  h6 {[%clk 0:02:32]} 9. c3 {[%clk 0:02:41]}  Bb6 {[%clk 0:02:18]} 10. Be3 {[%clk 0:02:36]}  Bxe3 {[%clk 0:02:15]} 11. Qxe3 {[%clk 0:02:37]}  Qe7 {[%clk 0:02:14]} 12. a4 {[%clk 0:02:31]}  Rb8 {[%clk 0:02:00]} 13. Nbd2 {[%clk 0:02:26]}  b4 {[%clk 0:01:47]} 14. O-O {[%clk 0:02:13]}  O-O {[%clk 0:01:47]} 15. Rfe1 {[%clk 0:02:09]}  Be6 {[%clk 0:01:05]} 16. Bxe6 {[%clk 0:02:07]}  Qxe6 {[%clk 0:01:03]} 17. d4 {[%clk 0:02:04]}  Qe7 {[%clk 0:01:01]} 18. a5 {[%clk 0:01:35]}  bxc3 {[%clk 0:00:55]} 19. bxc3 {[%clk 0:01:35]}  exd4 {[%clk 0:00:52]} 20. cxd4 {[%clk 0:01:34]}  Rb5 {[%clk 0:00:52]} 21. d5 {[%clk 0:01:04]}  Ne5 {[%clk 0:00:38]} 22. Nd4 {[%clk 0:01:01]}  Rb7 {[%clk 0:00:38]} 23. Rec1 {[%clk 0:00:39]}  Rfb8 {[%clk 0:00:29]} 24. f4 {[%clk 0:00:37]}  Ng6 {[%clk 0:00:20]} 25. Nc6 {[%clk 0:00:37]}  Qe8 {[%clk 0:00:20]} 26. Nxb8 {[%clk 0:00:37]}  Rxb8 {[%clk 0:00:16]} 27. Qf3 {[%clk 0:00:13]}  Rb4 {[%clk 0:00:15]} 28. Rxc7 {[%clk 0:00:11]}  Nxe4 {[%clk 0:00:12]} 29. Nxe4 {[%clk 0:00:11]}  Rxe4 {[%clk 0:00:13]} 30. Rc6 {[%clk 0:00:10]}  Rxf4 {[%clk 0:00:11]} 31. Qb3 {[%clk 0:00:07]}  Qe5 {[%clk 0:00:08]} 32. Rac1 {[%clk 0:00:04]}  Qd4+ {[%clk 0:00:06]} 33. Kh2 {[%clk 0:00:04]}  Rf2 {[%clk 0:00:06]} 34. Qg3 {[%clk 0:00:03]}  Kh7 {[%clk 0:00:04]} 35. Rxd6 {[%clk 0:00:02]}  Nf4 {[%clk 0:00:04]} 36. Rdc6 {[%clk 0:00:02]}  Rxg2+ {[%clk 0:00:04]} 37. Qxg2 {[%clk 0:00:02]}  Nxg2 {[%clk 0:00:05]} 38. Kxg2 {[%clk 0:00:03]}  Qxd5+ {[%clk 0:00:04]} 39. Kh2 {[%clk 0:00:03]}  Qxa5 {[%clk 0:00:05]} 40. Rc7 {[%clk 0:00:02]}  Qe5+ {[%clk 0:00:05]} 41. Kg2 {[%clk 0:00:01]}  a5 {[%clk 0:00:05]} 42. Kg1 {[%clk 0:00:01]}  a4 {[%clk 0:00:05]} 43. Kg2 {[%clk 0:00:02]}  a3 {[%clk 0:00:05]} 44. R7c2 {[%clk 0:00:02]}  a2 {[%clk 0:00:03]} 0-1


[Site "https://www.chess.com"]

[Event "Titled Tuesday Blitz April 11 Early 2023"]
[White "Sarana, Alexey"]
[Black "Svane, Frederik"]
[WhiteFideId "24133795"]
[BlackFideId "12923044"]
[WhiteElo "2714"]
[BlackElo "2502"]
[Result "1-0"]
[Round "10"]
[TimeControl "180+2"]
[Date "2023.04.11"]
[WhiteClock "0:00:09"]
[BlackClock "0:00:02"]

1. d4 {[%clk 0:03:00]}  Nf6 {[%clk 0:03:00]} 2. c4 {[%clk 0:03:00]}  e6 {[%clk 0:03:00]} 3. Nc3 {[%clk 0:03:00]}  Bb4 {[%clk 0:03:01]} 4. e3 {[%clk 0:03:01]}  b6 {[%clk 0:03:02]} 5. Ne2 {[%clk 0:03:00]}  Ne4 {[%clk 0:03:02]} 6. Qd3 {[%clk 0:02:56]}  Bb7 {[%clk 0:03:00]} 7. f3 {[%clk 0:02:55]}  Nxc3 {[%clk 0:02:56]} 8. Nxc3 {[%clk 0:02:56]}  d6 {[%clk 0:02:56]} 9. Bd2 {[%clk 0:02:55]}  Nd7 {[%clk 0:02:53]} 10. Be2 {[%clk 0:02:55]}  O-O {[%clk 0:02:50]} 11. O-O {[%clk 0:02:53]}  e5 {[%clk 0:02:49]} 12. a3 {[%clk 0:02:49]}  Bxc3 {[%clk 0:02:49]} 13. Bxc3 {[%clk 0:02:50]}  Qe7 {[%clk 0:02:49]} 14. e4 {[%clk 0:02:47]}  a5 {[%clk 0:02:43]} 15. b3 {[%clk 0:02:44]}  h6 {[%clk 0:02:38]} 16. Rfe1 {[%clk 0:02:42]}  Rfe8 {[%clk 0:02:25]} 17. Bf1 {[%clk 0:02:40]}  Qg5 {[%clk 0:02:23]} 18. Rad1 {[%clk 0:02:39]}  Rad8 {[%clk 0:02:18]} 19. Qd2 {[%clk 0:02:37]}  Qg6 {[%clk 0:02:16]} 20. b4 {[%clk 0:02:30]}  axb4 {[%clk 0:02:16]} 21. axb4 {[%clk 0:02:31]}  exd4 {[%clk 0:02:16]} 22. Bxd4 {[%clk 0:02:30]}  f5 {[%clk 0:02:11]} 23. exf5 {[%clk 0:02:23]}  Qxf5 {[%clk 0:02:12]} 24. Qf2 {[%clk 0:01:55]}  Nf6 {[%clk 0:01:59]} 25. h3 {[%clk 0:01:51]}  Qf4 {[%clk 0:01:52]} 26. Bb2 {[%clk 0:01:31]}  Bc8 {[%clk 0:01:31]} 27. Qd4 {[%clk 0:01:21]}  Qxd4+ {[%clk 0:01:29]} 28. Bxd4 {[%clk 0:01:22]}  Rxe1 {[%clk 0:01:29]} 29. Rxe1 {[%clk 0:01:23]}  Kf7 {[%clk 0:01:28]} 30. Kf2 {[%clk 0:01:23]}  Bb7 {[%clk 0:01:25]} 31. g4 {[%clk 0:01:18]}  c5 {[%clk 0:01:21]} 32. bxc5 {[%clk 0:01:08]}  bxc5 {[%clk 0:01:22]} 33. Be3 {[%clk 0:01:04]}  Ra8 {[%clk 0:01:10]} 34. Rb1 {[%clk 0:01:00]}  Bc8 {[%clk 0:01:09]} 35. Rb6 {[%clk 0:00:43]}  Ra6 {[%clk 0:01:09]} 36. Rb2 {[%clk 0:00:33]}  Ra4 {[%clk 0:01:04]} 37. Bd3 {[%clk 0:00:32]}  Ra3 {[%clk 0:00:54]} 38. Ke2 {[%clk 0:00:30]}  Ra4 {[%clk 0:00:52]} 39. f4 {[%clk 0:00:30]}  h5 {[%clk 0:00:51]} 40. g5 {[%clk 0:00:20]}  Ne8 {[%clk 0:00:52]} 41. f5 {[%clk 0:00:20]}  Ba6 {[%clk 0:00:52]} 42. Kd2 {[%clk 0:00:15]}  Bxc4 {[%clk 0:00:49]} 43. Rb7+ {[%clk 0:00:15]}  Kf8 {[%clk 0:00:49]} 44. Bc2 {[%clk 0:00:15]}  Ra3 {[%clk 0:00:49]} 45. f6 {[%clk 0:00:13]}  gxf6 {[%clk 0:00:44]} 46. g6 {[%clk 0:00:13]}  Ra8 {[%clk 0:00:32]} 47. Bh6+ {[%clk 0:00:14]}  Kg8 {[%clk 0:00:33]} 48. Bf5 {[%clk 0:00:13]}  Bd5 {[%clk 0:00:32]} 49. Re7 {[%clk 0:00:13]}  Bc4 {[%clk 0:00:24]} 50. Bd7 {[%clk 0:00:12]}  Nc7 {[%clk 0:00:20]} 51. Bc6 {[%clk 0:00:12]}  Ra7 {[%clk 0:00:11]} 52. Rd7 {[%clk 0:00:11]}  Ra2+ {[%clk 0:00:04]} 53. Kc3 {[%clk 0:00:11]}  Ne6 {[%clk 0:00:03]} 54. Kxc4 {[%clk 0:00:10]}  Rc2+ {[%clk 0:00:03]} 55. Kd5 {[%clk 0:00:09]}  Re2 {[%clk 0:00:02]} 56. Kxd6 {[%clk 0:00:10]}  Nf8 {[%clk 0:00:01]} 57. Bxf8 {[%clk 0:00:09]}  Kxf8 {[%clk 0:00:01]} 58. Bd5 {[%clk 0:00:09]}  Re7 {[%clk 0:00:02]} 59. Rxe7 {[%clk 0:00:09]} 1-0


[Site "https://www.chess.com"]